[Event "Titled Tuesday Blitz February 28 Late 2023"]
[White "Haszon, David"]
[Black "Ferreira, Vitor Hugo Vieira"]
[WhiteFideId "733610"]
[BlackFideId "2119765"]
[WhiteElo "2210"]
[BlackElo "2146"]
[Result "1-0"]
[Round "10"]
[TimeControl "180+2"]
[Date "2023.02.28"]
[WhiteClock "0:00:42"]
[BlackClock "0:00:09"]

1. d4 {[%clk 0:03:00]}  d5 {[%clk 0:02:09]} 2. Bf4 {[%clk 0:02:59]}  Nf6 {[%clk 0:02:07]} 3. e3 {[%clk 0:02:59]}  c5 {[%clk 0:02:07]} 4. Nd2 {[%clk 0:02:58]}  Nc6 {[%clk 0:02:06]} 5. Ngf3 {[%clk 0:02:57]}  Qb6 {[%clk 0:02:01]} 6. dxc5 {[%clk 0:02:57]}  Qxc5 {[%clk 0:02:00]} 7. a3 {[%clk 0:02:57]}  Bf5 {[%clk 0:01:54]} 8. c4 {[%clk 0:02:54]}  e6 {[%clk 0:01:46]} 9. b4 {[%clk 0:02:54]}  Qb6 {[%clk 0:01:43]} 10. c5 {[%clk 0:02:46]}  Qd8 {[%clk 0:01:43]} 11. Nd4 {[%clk 0:02:45]}  Nxd4 {[%clk 0:01:42]} 12. exd4 {[%clk 0:02:45]}  a6 {[%clk 0:01:41]} 13. Be2 {[%clk 0:02:38]}  Be7 {[%clk 0:01:40]} 14. O-O {[%clk 0:02:39]}  O-O {[%clk 0:01:40]} 15. a4 {[%clk 0:02:39]}  Ne4 {[%clk 0:01:40]} 16. Nxe4 {[%clk 0:02:38]}  dxe4 {[%clk 0:01:39]} 17. b5 {[%clk 0:02:37]}  Qa5 {[%clk 0:01:30]} 18. Bd2 {[%clk 0:02:32]}  Qc7 {[%clk 0:01:26]} 19. Qb3 {[%clk 0:02:20]}  Rfd8 {[%clk 0:01:24]} 20. Be3 {[%clk 0:02:12]}  Bf6 {[%clk 0:01:23]} 21. Rad1 {[%clk 0:02:00]}  h6 {[%clk 0:01:21]} 22. h3 {[%clk 0:01:48]}  Rd7 {[%clk 0:01:21]} 23. Rd2 {[%clk 0:01:48]}  Rad8 {[%clk 0:01:20]} 24. Rfd1 {[%clk 0:01:49]}  Bh7 {[%clk 0:00:52]} 25. bxa6 {[%clk 0:01:43]}  bxa6 {[%clk 0:00:52]} 26. Bxa6 {[%clk 0:01:44]}  Bg5 {[%clk 0:00:42]} 27. Bb5 {[%clk 0:01:36]}  Re7 {[%clk 0:00:41]} 28. c6 {[%clk 0:01:22]}  f5 {[%clk 0:00:37]} 29. d5 {[%clk 0:01:18]}  f4 {[%clk 0:00:19]} 30. d6 {[%clk 0:01:13]}  Rxd6 {[%clk 0:00:19]} 31. Rxd6 {[%clk 0:01:14]}  fxe3 {[%clk 0:00:19]} 32. fxe3 {[%clk 0:01:13]}  Qb6 {[%clk 0:00:18]} 33. Rxe6 {[%clk 0:01:07]}  Qxe3+ {[%clk 0:00:18]} 34. Qxe3 {[%clk 0:00:59]}  Bxe3+ {[%clk 0:00:18]} 35. Kf1 {[%clk 0:00:59]}  Rxe6 {[%clk 0:00:17]} 36. Bc4 {[%clk 0:00:47]}  Bf5 {[%clk 0:00:11]} 37. Rd6 {[%clk 0:00:43]}  Kf7 {[%clk 0:00:09]} 38. c7 {[%clk 0:00:41]}  Ke7 {[%clk 0:00:09]} 39. Rxe6+ {[%clk 0:00:41]}  Bxe6 {[%clk 0:00:09]} 40. Bxe6 {[%clk 0:00:42]} 1-0


[Site "https://www.chess.com"]

[Event "Titled Tuesday Blitz February 28 Late 2023"]
[White "Bulgurlu, Okan"]
[Black "Filgueira, Hernan"]
[WhiteFideId "6352316"]
[BlackFideId "101770"]
[WhiteElo "2352"]
[BlackElo "2363"]
[Result "1-0"]
[Round "10"]
[TimeControl "180+2"]
[Date "2023.02.28"]
[WhiteClock "0:00:13"]
[BlackClock "0:00:29"]

1. e4 {[%clk 0:03:00]}  d6 {[%clk 0:02:59]} 2. d4 {[%clk 0:02:59]}  Nf6 {[%clk 0:03:00]} 3. Nc3 {[%clk 0:02:59]}  c6 {[%clk 0:03:00]} 4. f4 {[%clk 0:02:59]}  Qa5 {[%clk 0:02:59]} 5. Nf3 {[%clk 0:02:59]}  Nxe4 {[%clk 0:02:58]} 6. Bd2 {[%clk 0:03:00]}  Nxd2 {[%clk 0:02:58]} 7. Qxd2 {[%clk 0:03:00]}  Bg4 {[%clk 0:02:56]} 8. Be2 {[%clk 0:02:59]}  e6 {[%clk 0:02:55]} 9. O-O-O {[%clk 0:02:59]}  Nd7 {[%clk 0:02:48]} 10. Kb1 {[%clk 0:02:58]}  Bxf3 {[%clk 0:02:44]} 11. Bxf3 {[%clk 0:02:57]}  O-O-O {[%clk 0:02:44]} 12. g4 {[%clk 0:02:46]}  d5 {[%clk 0:02:43]} 13. Rhe1 {[%clk 0:02:43]}  Nb6 {[%clk 0:02:29]} 14. f5 {[%clk 0:02:39]}  exf5 {[%clk 0:02:26]} 15. Nxd5 {[%clk 0:02:26]}  Qxd2 {[%clk 0:02:19]} 16. Nxb6+ {[%clk 0:02:26]}  axb6 {[%clk 0:02:20]} 17. Rxd2 {[%clk 0:02:27]}  fxg4 {[%clk 0:02:19]} 18. Bxg4+ {[%clk 0:02:28]}  Kc7 {[%clk 0:02:19]} 19. Rf1 {[%clk 0:02:20]}  f6 {[%clk 0:02:17]} 20. c3 {[%clk 0:02:19]}  Bd6 {[%clk 0:02:14]} 21. Rg2 {[%clk 0:02:14]}  Rhf8 {[%clk 0:02:09]} 22. Kc2 {[%clk 0:02:03]}  g6 {[%clk 0:02:08]} 23. h4 {[%clk 0:02:00]}  f5 {[%clk 0:02:08]} 24. Be2 {[%clk 0:01:57]}  Rde8 {[%clk 0:01:55]} 25. h5 {[%clk 0:01:50]}  Rf6 {[%clk 0:01:54]} 26. hxg6 {[%clk 0:01:49]}  hxg6 {[%clk 0:01:54]} 27. Rfg1 {[%clk 0:01:48]}  Bf4 {[%clk 0:01:43]} 28. Bd3 {[%clk 0:01:25]}  g5 {[%clk 0:01:42]} 29. Rh1 {[%clk 0:01:25]}  Re7 {[%clk 0:01:41]} 30. Rh8 {[%clk 0:01:15]}  Ref7 {[%clk 0:01:35]} 31. Re2 {[%clk 0:01:01]}  Bd6 {[%clk 0:01:24]} 32. Ree8 {[%clk 0:00:54]}  b5 {[%clk 0:01:22]} 33. c4 {[%clk 0:00:54]}  bxc4 {[%clk 0:01:20]} 34. Bxc4 {[%clk 0:00:55]}  Re7 {[%clk 0:01:17]} 35. Rc8+ {[%clk 0:00:53]}  Kb6 {[%clk 0:01:17]} 36. a4 {[%clk 0:00:40]}  Bb4 {[%clk 0:01:13]} 37. Kb3 {[%clk 0:00:37]}  Ba5 {[%clk 0:01:13]} 38. Bd3 {[%clk 0:00:17]}  Re3 {[%clk 0:01:06]} 39. Kc4 {[%clk 0:00:17]}  f4 {[%clk 0:00:34]} 40. b4 {[%clk 0:00:12]}  Bxb4 {[%clk 0:00:34]} 41. Kxb4 {[%clk 0:00:12]}  Rxd3 {[%clk 0:00:29]} 42. a5+ {[%clk 0:00:13]} 1-0


[Site "https://www.chess.com"]

[Event "Titled Tuesday Blitz February 28 Late 2023"]
[White "Liu, Eric"]
[Black "Pein, Jonathan"]
[WhiteFideId "30960240"]
[BlackFideId "417092"]
[WhiteElo "2094"]
[BlackElo "2151"]
[Result "1-0"]
[Round "10"]
[TimeControl "180+2"]
[Date "2023.02.28"]
[WhiteClock "0:02:06"]
[BlackClock "0:00:52"]

1. b3 {[%clk 0:03:00]}  Nf6 {[%clk 0:02:54]} 2. Bb2 {[%clk 0:03:01]}  g6 {[%clk 0:02:54]} 3. g4 {[%clk 0:02:55]}  Bg7 {[%clk 0:02:54]} 4. g5 {[%clk 0:02:55]}  Nh5 {[%clk 0:02:54]} 5. Qc1 {[%clk 0:02:56]}  Nc6 {[%clk 0:02:51]} 6. Nf3 {[%clk 0:02:56]}  e5 {[%clk 0:02:50]} 7. d4 {[%clk 0:02:52]}  exd4 {[%clk 0:02:45]} 8. e3 {[%clk 0:02:51]}  dxe3 {[%clk 0:02:43]} 9. Qxe3+ {[%clk 0:02:44]}  Qe7 {[%clk 0:02:43]} 10. Qxe7+ {[%clk 0:02:44]}  Nxe7 {[%clk 0:02:42]} 11. Bxg7 {[%clk 0:02:45]}  Nxg7 {[%clk 0:02:42]} 12. Nc3 {[%clk 0:02:46]}  c6 {[%clk 0:02:37]} 13. Ne4 {[%clk 0:02:45]}  d5 {[%clk 0:02:34]} 14. Nf6+ {[%clk 0:02:45]}  Kf8 {[%clk 0:02:34]} 15. O-O-O {[%clk 0:02:43]}  Ne8 {[%clk 0:02:34]} 16. Nxe8 {[%clk 0:02:41]}  Kxe8 {[%clk 0:02:35]} 17. Re1 {[%clk 0:02:42]}  Kf8 {[%clk 0:02:32]} 18. h4 {[%clk 0:02:38]}  h5 {[%clk 0:02:31]} 19. c4 {[%clk 0:02:35]}  Bg4 {[%clk 0:02:23]} 20. Ne5 {[%clk 0:02:35]}  Be6 {[%clk 0:02:22]} 21. cxd5 {[%clk 0:02:36]}  Bxd5 {[%clk 0:02:16]} 22. Rh3 {[%clk 0:02:35]}  Be6 {[%clk 0:02:11]} 23. Rf3 {[%clk 0:02:33]}  Kg7 {[%clk 0:02:09]} 24. Nxf7 {[%clk 0:02:32]}  Rhf8 {[%clk 0:01:54]} 25. Rxe6 {[%clk 0:02:30]}  Rxf7 {[%clk 0:01:55]} 26. Rxf7+ {[%clk 0:02:30]}  Kxf7 {[%clk 0:01:55]} 27. Rf6+ {[%clk 0:02:31]}  Kg7 {[%clk 0:01:48]} 28. Bd3 {[%clk 0:02:32]}  Rf8 {[%clk 0:01:47]} 29. Re6 {[%clk 0:02:31]}  Nf5 {[%clk 0:01:41]} 30. Re4 {[%clk 0:02:24]}  Rd8 {[%clk 0:01:34]} 31. Kd2 {[%clk 0:02:21]}  Rd4 {[%clk 0:01:27]} 32. Rxd4 {[%clk 0:02:18]}  Nxd4 {[%clk 0:01:28]} 33. Be4 {[%clk 0:02:19]}  Kf7 {[%clk 0:01:21]} 34. Ke3 {[%clk 0:02:17]}  Ne6 {[%clk 0:01:21]} 35. f4 {[%clk 0:02:17]}  a5 {[%clk 0:01:15]} 36. f5 {[%clk 0:02:17]}  gxf5 {[%clk 0:01:13]} 37. Bxf5 {[%clk 0:02:18]}  Ng7 {[%clk 0:01:10]} 38. Be4 {[%clk 0:02:09]}  Ke6 {[%clk 0:01:09]} 39. Kf4 {[%clk 0:02:09]}  Kd6 {[%clk 0:01:06]} 40. g6 {[%clk 0:02:06]}  b5 {[%clk 0:01:06]} 41. Kg5 {[%clk 0:02:06]}  c5 {[%clk 0:01:06]} 42. Kf6 {[%clk 0:02:06]}  Ne8+ {[%clk 0:01:06]} 43. Kf7 {[%clk 0:02:06]}  Nc7 {[%clk 0:00:52]} 44. g7 {[%clk 0:02:06]} 1-0


[Site "https://www.chess.com"]

[Event "Titled Tuesday Blitz February 28 Late 2023"]
[White "Hoffmann, Asa"]
[Black "Martic, Ivan"]
[WhiteFideId "2001470"]
[BlackFideId "929301"]
[WhiteElo "2117"]
[BlackElo "2360"]
[Result "0-1"]
[Round "10"]
[TimeControl "180+2"]
[Date "2023.02.28"]
[WhiteClock "0:01:16"]
[BlackClock "0:01:18"]

1. d4 {[%clk 0:02:56]}  d6 {[%clk 0:02:59]} 2. e4 {[%clk 0:02:55]}  Nf6 {[%clk 0:02:59]} 3. f3 {[%clk 0:02:55]}  e5 {[%clk 0:02:56]} 4. Ne2 {[%clk 0:02:54]}  Nbd7 {[%clk 0:02:52]} 5. Nbc3 {[%clk 0:02:54]}  c6 {[%clk 0:02:52]} 6. Be3 {[%clk 0:02:53]}  g6 {[%clk 0:02:50]} 7. Qd2 {[%clk 0:02:53]}  Bg7 {[%clk 0:02:51]} 8. O-O-O {[%clk 0:02:52]}  Qa5 {[%clk 0:02:50]} 9. a3 {[%clk 0:02:51]}  b5 {[%clk 0:02:50]} 10. Kb1 {[%clk 0:02:48]}  O-O {[%clk 0:02:45]} 11. Bh6 {[%clk 0:02:48]}  Bxh6 {[%clk 0:02:41]} 12. Qxh6 {[%clk 0:02:47]}  b4 {[%clk 0:02:42]} 13. axb4 {[%clk 0:02:46]}  Qxb4 {[%clk 0:02:43]} 14. h4 {[%clk 0:02:30]}  Rb8 {[%clk 0:02:41]} 15. b3 {[%clk 0:02:29]}  exd4 {[%clk 0:02:33]} 16. Rxd4 {[%clk 0:02:27]}  Qa3 {[%clk 0:02:13]} 17. h5 {[%clk 0:02:23]}  Nc5 {[%clk 0:02:08]} 18. hxg6 {[%clk 0:02:21]}  fxg6 {[%clk 0:02:07]} 19. Nf4 {[%clk 0:02:16]}  Nxb3 {[%clk 0:02:00]} 20. Bc4+ {[%clk 0:02:14]}  d5 {[%clk 0:01:58]} 21. cxb3 {[%clk 0:01:57]}  dxc4 {[%clk 0:01:36]} 22. Kc2 {[%clk 0:01:23]}  Qxb3+ {[%clk 0:01:28]} 23. Kd2 {[%clk 0:01:22]}  Qb2+ {[%clk 0:01:28]} 24. Ke3 {[%clk 0:01:18]}  Qxc3+ {[%clk 0:01:27]} 25. Rd3 {[%clk 0:01:17]}  cxd3 {[%clk 0:01:23]} 26. Nxd3 {[%clk 0:01:16]}  Ba6 {[%clk 0:01:18]} 0-1


[Site "https://www.chess.com"]

[Event "Titled Tuesday Blitz February 28 Late 2023"]
[White "Lawson, Eric"]
[Black "Hajiyev, Kanan"]
[WhiteFideId "2604116"]
[BlackFideId "13404148"]
[WhiteElo "2498"]
[BlackElo "2103"]
[Result "0-1"]
[Round "10"]
[TimeControl "180+2"]
[Date "2023.02.28"]
[WhiteClock "0:00:33"]
[BlackClock "0:00:34"]

1. d4 {[%clk 0:03:00]}  d5 {[%clk 0:02:43]} 2. Nc3 {[%clk 0:02:59]}  c6 {[%clk 0:02:43]} 3. Bf4 {[%clk 0:02:59]}  a6 {[%clk 0:02:44]} 4. f3 {[%clk 0:02:57]}  Nf6 {[%clk 0:02:42]} 5. Qd2 {[%clk 0:02:54]}  Qa5 {[%clk 0:02:40]} 6. e4 {[%clk 0:02:51]}  e6 {[%clk 0:02:35]} 7. e5 {[%clk 0:02:45]}  Nfd7 {[%clk 0:02:35]} 8. Be3 {[%clk 0:02:45]}  c5 {[%clk 0:02:30]} 9. f4 {[%clk 0:02:46]}  Nc6 {[%clk 0:02:28]} 10. Nf3 {[%clk 0:02:46]}  cxd4 {[%clk 0:02:20]} 11. Nxd4 {[%clk 0:02:46]}  Bc5 {[%clk 0:02:17]} 12. a3 {[%clk 0:02:42]}  Nxd4 {[%clk 0:02:02]} 13. Bxd4 {[%clk 0:02:41]}  Bxd4 {[%clk 0:02:02]} 14. Qxd4 {[%clk 0:02:41]}  Qc5 {[%clk 0:02:01]} 15. Qxc5 {[%clk 0:02:39]}  Nxc5 {[%clk 0:02:02]} 16. b4 {[%clk 0:02:39]}  Nd7 {[%clk 0:01:55]} 17. O-O-O {[%clk 0:02:35]}  Nb6 {[%clk 0:01:54]} 18. Kb2 {[%clk 0:02:26]}  Bd7 {[%clk 0:01:54]} 19. Kb3 {[%clk 0:02:26]}  Rc8 {[%clk 0:01:53]} 20. Rd4 {[%clk 0:02:25]}  Ke7 {[%clk 0:01:40]} 21. a4 {[%clk 0:02:23]}  Rc7 {[%clk 0:01:29]} 22. a5 {[%clk 0:02:22]}  Rhc8 {[%clk 0:01:29]} 23. Nd1 {[%clk 0:01:47]}  Nc4 {[%clk 0:01:14]} 24. c3 {[%clk 0:01:46]}  Bb5 {[%clk 0:01:12]} 25. g3 {[%clk 0:01:26]}  Ne3 {[%clk 0:01:12]} 26. Bxb5 {[%clk 0:01:17]}  Nxd1 {[%clk 0:01:00]} 27. c4 {[%clk 0:00:38]}  axb5 {[%clk 0:00:45]} 28. cxb5 {[%clk 0:00:34]}  Rc3+ {[%clk 0:00:43]} 29. Ka2 {[%clk 0:00:34]}  Rc2+ {[%clk 0:00:41]} 30. Kb1 {[%clk 0:00:33]}  Rb2+ {[%clk 0:00:33]} 31. Ka1 {[%clk 0:00:33]}  Rc1# {[%clk 0:00:34]} 0-1


[Site "https://www.chess.com"]

[Event "Titled Tuesday Blitz February 28 Late 2023"]
[White "ArchibaldCerveza29"]
[Black "Guzman Moneo, Alberto"]
[BlackFideId "2209616"]
[WhiteElo "2494"]
[BlackElo "2157"]
[Result "1-0"]
[Round "10"]
[TimeControl "180+2"]
[Date "2023.02.28"]
[WhiteClock "0:00:30"]
[BlackClock "0:00:07"]

1. e4 {[%clk 0:03:00]}  c5 {[%clk 0:02:57]} 2. Nf3 {[%clk 0:03:00]}  Nc6 {[%clk 0:02:57]} 3. d4 {[%clk 0:03:01]}  cxd4 {[%clk 0:02:58]} 4. Nxd4 {[%clk 0:03:02]}  g6 {[%clk 0:02:58]} 5. Nc3 {[%clk 0:03:01]}  Nf6 {[%clk 0:02:58]} 6. f3 {[%clk 0:03:00]}  Nxd4 {[%clk 0:02:55]} 7. Qxd4 {[%clk 0:03:00]}  Bg7 {[%clk 0:02:56]} 8. Be3 {[%clk 0:03:00]}  O-O {[%clk 0:02:56]} 9. O-O-O {[%clk 0:02:58]}  Ng4 {[%clk 0:02:51]} 10. Qd2 {[%clk 0:02:53]}  Nxe3 {[%clk 0:02:51]} 11. Qxe3 {[%clk 0:02:54]}  d6 {[%clk 0:02:49]} 12. g4 {[%clk 0:02:52]}  Be6 {[%clk 0:02:42]} 13. Kb1 {[%clk 0:02:52]}  Qa5 {[%clk 0:02:41]} 14. Nd5 {[%clk 0:02:50]}  Bxd5 {[%clk 0:02:38]} 15. Rxd5 {[%clk 0:02:41]}  Qb4 {[%clk 0:02:35]} 16. c3 {[%clk 0:02:42]}  Qb6 {[%clk 0:02:22]} 17. Qxb6 {[%clk 0:02:41]}  axb6 {[%clk 0:02:23]} 18. Rb5 {[%clk 0:02:41]}  Ra6 {[%clk 0:02:18]} 19. Rb3 {[%clk 0:02:39]}  Ra5 {[%clk 0:02:13]} 20. Rxb6 {[%clk 0:02:39]}  Rfa8 {[%clk 0:02:14]} 21. Bc4 {[%clk 0:02:37]}  h5 {[%clk 0:02:11]} 22. Rxb7 {[%clk 0:02:34]}  hxg4 {[%clk 0:02:11]} 23. Rxe7 {[%clk 0:02:20]}  Rc5 {[%clk 0:02:03]} 24. Bd5 {[%clk 0:02:15]}  Rb8 {[%clk 0:01:58]} 25. Rxf7 {[%clk 0:02:09]}  Kh8 {[%clk 0:01:51]} 26. Kc2 {[%clk 0:02:05]}  gxf3 {[%clk 0:01:43]} 27. Rxf3 {[%clk 0:02:06]}  Be5 {[%clk 0:01:43]} 28. Rg1 {[%clk 0:02:03]}  Rcb5 {[%clk 0:01:41]} 29. b3 {[%clk 0:01:56]}  Kg7 {[%clk 0:01:38]} 30. Rf7+ {[%clk 0:01:54]}  Kh6 {[%clk 0:01:39]} 31. a4 {[%clk 0:01:52]}  Rc5 {[%clk 0:01:37]} 32. c4 {[%clk 0:01:52]}  g5 {[%clk 0:01:23]} 33. Rb7 {[%clk 0:01:31]}  Rf8 {[%clk 0:01:16]} 34. Rg2 {[%clk 0:01:26]}  Rf3 {[%clk 0:01:10]} 35. b4 {[%clk 0:01:22]}  Rc8 {[%clk 0:01:06]} 36. Rf7 {[%clk 0:01:17]}  Rc3+ {[%clk 0:01:02]} 37. Kd2 {[%clk 0:01:16]}  Ra3 {[%clk 0:00:57]} 38. Be6 {[%clk 0:00:56]}  Re8 {[%clk 0:00:50]} 39. Bf5 {[%clk 0:00:56]}  Bg7 {[%clk 0:00:39]} 40. Rg3 {[%clk 0:00:56]}  Ra2+ {[%clk 0:00:33]} 41. Ke3 {[%clk 0:00:55]}  Rxh2 {[%clk 0:00:33]} 42. a5 {[%clk 0:00:45]}  Rh1 {[%clk 0:00:26]} 43. a6 {[%clk 0:00:45]}  Re1+ {[%clk 0:00:24]} 44. Kd2 {[%clk 0:00:44]}  Rh1 {[%clk 0:00:24]} 45. b5 {[%clk 0:00:43]}  g4 {[%clk 0:00:20]} 46. Rxg4 {[%clk 0:00:41]}  Rh2+ {[%clk 0:00:17]} 47. Ke3 {[%clk 0:00:37]}  Rh5 {[%clk 0:00:18]} 48. Rg6+ {[%clk 0:00:35]}  Kh7 {[%clk 0:00:18]} 49. Rgxg7+ {[%clk 0:00:34]}  Kh8 {[%clk 0:00:16]} 50. Rh7+ {[%clk 0:00:35]}  Kg8 {[%clk 0:00:15]} 51. Rxh5 {[%clk 0:00:34]}  d5 {[%clk 0:00:16]} 52. cxd5 {[%clk 0:00:33]}  Rb8 {[%clk 0:00:12]} 53. Rb7 {[%clk 0:00:31]}  Re8 {[%clk 0:00:11]} 54. a7 {[%clk 0:00:31]}  Rf8 {[%clk 0:00:07]} 55. Rb8 {[%clk 0:00:30]}  Kg7 {[%clk 0:00:07]} 56. Rxf8 {[%clk 0:00:30]} 1-0


[Site "https://www.chess.com"]

[Event "Titled Tuesday Blitz February 28 Late 2023"]
[White "Drnovsek, Gal"]
[Black "Kostiukov, Alexandr"]
[WhiteFideId "14607077"]
[BlackFideId "14108100"]
[WhiteElo "2293"]
[BlackElo "2202"]
[Result "1-0"]
[Round "10"]
[TimeControl "180+2"]
[Date "2023.02.28"]
[WhiteClock "0:00:54"]
[BlackClock "0:00:11"]

1. e4 {[%clk 0:02:57]}  c5 {[%clk 0:02:59]} 2. c3 {[%clk 0:02:57]}  g6 {[%clk 0:02:59]} 3. d3 {[%clk 0:02:57]}  Bg7 {[%clk 0:02:58]} 4. f4 {[%clk 0:02:57]}  Nc6 {[%clk 0:02:58]} 5. Nf3 {[%clk 0:02:58]}  e6 {[%clk 0:02:58]} 6. Be2 {[%clk 0:02:58]}  Nge7 {[%clk 0:02:59]} 7. O-O {[%clk 0:02:59]}  O-O {[%clk 0:02:59]} 8. Be3 {[%clk 0:03:00]}  d6 {[%clk 0:02:59]} 9. Nbd2 {[%clk 0:02:56]}  a6 {[%clk 0:02:56]} 10. Qe1 {[%clk 0:02:56]}  Rb8 {[%clk 0:02:53]} 11. a4 {[%clk 0:02:42]}  b5 {[%clk 0:02:53]} 12. axb5 {[%clk 0:02:42]}  axb5 {[%clk 0:02:54]} 13. Qh4 {[%clk 0:02:38]}  b4 {[%clk 0:02:49]} 14. f5 {[%clk 0:02:28]}  exf5 {[%clk 0:02:39]} 15. Bh6 {[%clk 0:02:27]}  bxc3 {[%clk 0:02:24]} 16. bxc3 {[%clk 0:02:18]}  Bxh6 {[%clk 0:02:12]} 17. Qxh6 {[%clk 0:02:17]}  f6 {[%clk 0:02:13]} 18. d4 {[%clk 0:02:06]}  cxd4 {[%clk 0:02:05]} 19. cxd4 {[%clk 0:02:06]}  fxe4 {[%clk 0:01:53]} 20. Nxe4 {[%clk 0:02:05]}  Nf5 {[%clk 0:01:51]} 21. Qd2 {[%clk 0:01:55]}  Re8 {[%clk 0:01:32]} 22. Ng3 {[%clk 0:01:18]}  Nxg3 {[%clk 0:01:22]} 23. hxg3 {[%clk 0:01:19]}  Qe7 {[%clk 0:01:10]} 24. Bc4+ {[%clk 0:01:16]}  Kg7 {[%clk 0:01:08]} 25. Rfe1 {[%clk 0:01:11]}  Qf8 {[%clk 0:01:03]} 26. Rxe8 {[%clk 0:01:07]}  Qxe8 {[%clk 0:01:04]} 27. Bd5 {[%clk 0:01:07]}  Bb7 {[%clk 0:00:20]} 28. Qf4 {[%clk 0:01:02]}  Qe7 {[%clk 0:00:14]} 29. Rb1 {[%clk 0:00:57]}  Bc8 {[%clk 0:00:12]} 30. Re1 {[%clk 0:00:53]}  Qc7 {[%clk 0:00:11]} 31. Bxc6 {[%clk 0:00:53]}  Qxc6 {[%clk 0:00:10]} 32. Re7+ {[%clk 0:00:53]}  Kf8 {[%clk 0:00:10]} 33. Qxf6+ {[%clk 0:00:53]}  Kg8 {[%clk 0:00:11]} 34. Qg7# {[%clk 0:00:54]} 1-0


[Site "https://www.chess.com"]

[Event "Titled Tuesday Blitz February 28 Late 2023"]
[White "Vovk, Orest"]
[Black "Smith, Garrett L"]
[WhiteFideId "14113490"]
[BlackFideId "2024829"]
[WhiteElo "2215"]
[BlackElo "2307"]
[Result "1-0"]
[Round "10"]
[TimeControl "180+2"]
[Date "2023.02.28"]
[WhiteClock "0:01:38"]
[BlackClock "0:01:01"]

1. h4 {[%clk 0:02:29]}  d5 {[%clk 0:02:59]} 2. h5 {[%clk 0:02:29]}  e5 {[%clk 0:02:58]} 3. h6 {[%clk 0:02:29]}  Nxh6 {[%clk 0:02:56]} 4. d4 {[%clk 0:02:29]}  e4 {[%clk 0:02:53]} 5. Bxh6 {[%clk 0:02:29]}  gxh6 {[%clk 0:02:52]} 6. e3 {[%clk 0:02:30]}  Nc6 {[%clk 0:02:48]} 7. Ne2 {[%clk 0:02:30]}  Bf5 {[%clk 0:02:44]} 8. Nf4 {[%clk 0:02:30]}  Ne7 {[%clk 0:02:13]} 9. c4 {[%clk 0:02:03]}  dxc4 {[%clk 0:01:59]} 10. Bxc4 {[%clk 0:02:03]}  Ng6 {[%clk 0:01:58]} 11. Qb3 {[%clk 0:02:02]}  Nxf4 {[%clk 0:01:40]} 12. Bxf7+ {[%clk 0:02:01]}  Ke7 {[%clk 0:01:39]} 13. exf4 {[%clk 0:02:01]}  Qxd4 {[%clk 0:01:33]} 14. Nc3 {[%clk 0:01:56]}  c6 {[%clk 0:01:15]} 15. Qxb7+ {[%clk 0:01:54]}  Qd7 {[%clk 0:01:15]} 16. Qxa8 {[%clk 0:01:51]}  Kxf7 {[%clk 0:01:12]} 17. Rd1 {[%clk 0:01:48]}  Qe7 {[%clk 0:01:02]} 18. Qxc6 {[%clk 0:01:45]}  Bg7 {[%clk 0:01:01]} 19. Nd5 {[%clk 0:01:38]} 1-0


[Site "https://www.chess.com"]

[Event "Titled Tuesday Blitz February 28 Late 2023"]
[White "Przybylski, Wojciech"]
[Black "Clawitter, Craig"]
[WhiteFideId "1117599"]
[BlackFideId "2023105"]
[WhiteElo "2222"]
[BlackElo "2276"]
[Result "1-0"]
[Round "10"]
[TimeControl "180+2"]
[Date "2023.02.28"]
[WhiteClock "0:02:12"]
[BlackClock "0:00:06"]

1. e4 {[%clk 0:03:00]}  e6 {[%clk 0:03:00]} 2. d4 {[%clk 0:02:59]}  d5 {[%clk 0:03:00]} 3. Nc3 {[%clk 0:02:59]}  Bb4 {[%clk 0:02:56]} 4. e5 {[%clk 0:03:00]}  c5 {[%clk 0:02:56]} 5. a3 {[%clk 0:02:58]}  Bxc3+ {[%clk 0:02:57]} 6. bxc3 {[%clk 0:02:59]}  Ne7 {[%clk 0:02:57]} 7. h4 {[%clk 0:02:57]}  Qa5 {[%clk 0:02:52]} 8. Bd2 {[%clk 0:02:56]}  Nbc6 {[%clk 0:02:49]} 9. h5 {[%clk 0:02:54]}  Bd7 {[%clk 0:02:46]} 10. Rh4 {[%clk 0:02:52]}  O-O-O {[%clk 0:02:40]} 11. c4 {[%clk 0:02:48]}  Qc7 {[%clk 0:02:39]} 12. c3 {[%clk 0:02:45]}  h6 {[%clk 0:02:14]} 13. Nf3 {[%clk 0:02:43]}  Kb8 {[%clk 0:02:04]} 14. Rb1 {[%clk 0:02:43]}  Ka8 {[%clk 0:02:02]} 15. Qb3 {[%clk 0:02:36]}  Bc8 {[%clk 0:01:58]} 16. cxd5 {[%clk 0:02:35]}  Nxd5 {[%clk 0:01:55]} 17. c4 {[%clk 0:02:31]}  Nde7 {[%clk 0:01:07]} 18. Bd3 {[%clk 0:02:29]}  cxd4 {[%clk 0:00:54]} 19. Be4 {[%clk 0:02:29]}  Nf5 {[%clk 0:00:46]} 20. Rg4 {[%clk 0:02:28]}  Nxe5 {[%clk 0:00:27]} 21. Nxe5 {[%clk 0:02:25]}  Qxe5 {[%clk 0:00:27]} 22. Kf1 {[%clk 0:02:20]}  Qc7 {[%clk 0:00:17]} 23. Ba5 {[%clk 0:02:19]}  Qxa5 {[%clk 0:00:06]} 24. Bxb7+ {[%clk 0:02:17]}  Kb8 {[%clk 0:00:06]} 25. Bxc8+ {[%clk 0:02:16]}  Kxc8 {[%clk 0:00:06]} 26. Qb7# {[%clk 0:02:12]} 1-0


[Site "https://www.chess.com"]